Cogmind - Beta 14 @@@ ROGUE MODE // 2024.11.18 @ 23:56:16 Player: naththebg Result: Destroyed by S-27 Virus with Autogun Performance ------------- Evolutions (6) 3000 Regions Visited (10) 2000 Robots Destroyed (290) 1450 Value Destroyed (9669) 9669 Prototype IDs (26) 520 Alien Tech Used (0) 0 Bonus (2674) 2674 TOTAL SCORE: 19313 Bonus ------- High Alert Combat Kills 2502 Follower Combat Kills 378 Registered with UFD 300 Friendly Fire -506 Cogmind --------- Core Integrity 0/1150 Matter 258/300 Energy 99/100 System Corruption 3% Temperature Cool (0) Movement Core (50) Location -4/Upper Caves Parts ------- > --- POWER (2) -------- (None) > --- PROPULSION (5) --- (None) > --- UTILITY (8) ------ Enhanced Optical Array Long-range Sensor Array Advanced Signal Interpreter Advanced Melee Analysis Suite Advanced Melee Analysis Suite > --- WEAPON (4) ------- (None) > --- INVENTORY (5) ---- Scrap Suit Advanced Power Amplifier Medium Storage Unit Advanced Melee Analysis Suite Peak State ------------ > --- POWER ------------ Cold Fusion Reactor Light Antimatter Reactor > --- PROPULSION ------- Light Treads Improved Treads Armored Medium Treads Armored Medium Treads Armored Medium Treads > --- UTILITY ---------- Advanced Cooling System Huge Storage Unit Experimental Terrain Scanner Advanced Terrain Scan Processor Advanced Targeting Computer Matter Filter Kinecellerator Improved Shield Generator > --- WEAPON ----------- Matter Neutralizer Hardcell Cannon Heavy Gauss Cannon Hypervelocity Mass Driver > --- INVENTORY -------- Cold Fusion Reactor Light Treads Scrap Suit Scrap Suit Advanced Heat Sink High-capacity Storage Unit Makeshift Salvage Targeting Computer Makeshift Salvage Targeting Computer Phase Shifter Hardlight Generator Improved System Guard Improved Corruption Screen Precision Shock Rifle Advanced Plasma Cannon Gauss Rifle Precision Assault Rifle Precision Assault Rifle Precision Assault Rifle Heavy Gauss Cannon Rocket Array Power Maul DRS Beacon [Rating: 108] Favorites ----------- Power Enhanced Nuclear Core Engine Light Ion Engine Power Core Enhanced Nuclear Core Reactor Cold Fusion Reactor Propulsion Light Treads Treads Light Treads Wheel Wheel Flight Unit Field Propulsion Array Utility Improved Signal Interpreter Device Experimental Terrain Scanner Storage Large Storage Unit Processor Improved Signal Interpreter Protection Hardened Medium Armor Plating Weapon Precision Assault Rifle Energy Gun Improved Medium Laser Energy Cannon Advanced Plasma Cannon Ballistic Gun Precision Assault Rifle Ballistic Cannon Heavy Gauss Cannon Launcher Rocket Array Impact Weapon Power Maul Slashing Weapon Dual-blade Saw Build | -11 -10 -10 -8 -7 -7 -7 -7 -5 -4 -4 ------- Run | Yrd Mat Sub Mat Fac Sto Rec Scr Fac Fac Upp Slots Evolved 12 | . . . 4 2 . . . 4 2 . Power 1 | . . . . . . . . . 1 . Propulsion 3 | . . . 1 1 . . . 1 . . Utility 6 | . . . 2 1 . . . 2 1 . Weapon 2 | . . . 1 . . . . 1 . . Parts Attached 206 | 8 8 9 27 5 27 8 16 48 50 . Power 18 | 1 . 4 2 . 2 . . 5 4 . Engine 11 | 1 . 4 2 . 1 . . 3 . . Core 2 | . . . . . 1 . . . 1 . Reactor 5 | . . . . . . . . 2 3 . Propulsion 58 | 4 . 2 7 1 8 2 . 21 13 . Treads 51 | 2 . . 6 1 8 2 . 21 11 . Leg . | . . . . . . . . . . . Wheel 5 | 2 . 2 1 . . . . . . . Hover . | . . . . . . . . . . . Flight 2 | . . . . . . . . . 2 . Utility 55 | 1 4 . 10 1 1 2 10 8 18 . Device 28 | . 3 . 4 . . 1 7 2 11 . Storage 4 | 1 1 . 1 . . . . 1 . . Processor 10 | . . . 1 1 . . . 2 6 . Hackware . | . . . . . . . . . . . Protection 13 | . . . 4 . 1 1 3 3 1 . Artifact . | . . . . . . . . . . . Weapon 75 | 2 4 3 8 3 16 4 6 14 15 . Energy Gun 2 | . 1 . . . . . . . 1 . Energy Cannon 8 | . . . . . 3 . . 1 4 . Ballistic Gun 35 | 2 3 1 6 3 6 3 5 5 1 . Ballistic Cannon 8 | . . 2 2 . . . . . 4 . Launcher 17 | . . . . . 6 1 1 6 3 . Special Weapon . | . . . . . . . . . . . Impact Weapon 4 | . . . . . 1 . . 2 1 . Slashing Weapon 1 | . . . . . . . . . 1 . Piercing Weapon . | . . . . . . . . . . . Special Melee Weapon . | . . . . . . . . . . . Unidentified Prototypes 15 | . 1 . . 1 5 . . 3 5 . Parts Lost 66 | . . 2 7 . 6 3 . 19 29 . Power 5 | . . 1 . . 1 . . 1 2 . Propulsion 22 | . . 1 2 . 3 2 . 8 6 . Utility 21 | . . . 1 . . 1 . 5 14 . Weapon 18 | . . . 4 . 2 . . 5 7 . Highest Loss Streak 8 | . . 2 7 . 2 3 . 5 8 . To Critical Strikes . | . . . . . . . . . . . Average Slot Usage (%) 92 | . 99 97 96 99 95 86 91 95 82 26 Engine 4 | . 14 11 9 7 4 . . 2 . . Core 2 | . . . . . 1 7 7 1 . . Reactor 1 | . . . . . . . . . 7 . Treads 23 | . 28 21 23 30 27 19 23 27 18 . Device 10 | . 13 14 8 7 7 7 5 6 18 5 Storage 7 | . 14 14 9 7 7 7 7 5 4 . Processor 11 | . . . 8 15 15 15 15 16 13 21 Protection 5 | . . . 8 7 7 6 7 8 . . Ballistic Gun 16 | . 26 13 26 15 14 16 22 14 4 . Ballistic Cannon 2 | . . 13 . 6 . . . . 6 . Launcher 1 | . . . . . 4 . . 5 . . Peak Build Rating 108 | 6 13 14 31 37 44 44 51 89 108 29 Average Rating 47 | 4 8 12 27 34 39 42 45 79 85 29 On Entrance 30 | . 6 13 13 31 37 44 30 51 78 29 Naked Turns . | . . . . . . . . . . . Heaviest Build 162 | 11 31 32 50 47 57 54 58 126 162 2 Greatest Support 143 | 40 40 40 66 86 86 82 62 143 132 3 Greatest Overweight (x) 4 | . . 1 4 . 1 1 . 1 1 . Average Overweight (x) . | . . . . . . . . . . . Largest Inventory Capacity 25 | 8 15 15 15 15 15 15 15 25 25 5 Average Capacity 17 | 6 14 15 15 15 15 15 15 23 22 5 Most Carried 25 | . 15 15 15 15 15 15 15 22 25 5 Average Carried 14 | . 10 14 14 13 14 14 14 16 17 5 Final Capacity 25 | 8 15 15 15 15 15 15 15 25 5 5 Final Carried 15 | . 15 15 15 15 15 15 14 9 5 5 Class Distribution -------------------- 24% | Gunner 24% | Mutant 19% | Scavenger-Skirmisher 13% | Tank 10% | Skirmisher 4% | Scavenger-Mutant Dominant Class ---------------- Mutant | -10/Materials Mutant | -10/Subcaves Scavenger-Skirmisher | -8/Materials Skirmisher | -7/Factory Scavenger-Skirmisher | -7/Storage Gunner | -7/Recycling Gunner | -7/Scraptown Tank | -5/Factory Scavenger-Skirmisher | -4/Factory Scout | -4/Upper Caves Resources | -11 -10 -10 -8 -7 -7 -7 -7 -5 -4 -4 ----------- Run | Yrd Mat Sub Mat Fac Sto Rec Scr Fac Fac Upp Matter Collected 6389 | 283 265 252 875 78 1258 159 154 1886 1179 . Remotely . | . . . . . . . . . . . Salvage Created 10385 | 93 503 23 1238 140 2401 581 . 3468 1938 . Parts 548 | 2 50 4 76 9 124 19 . 186 78 . Haulers Intercepted 19 | . 2 . 3 1 5 1 . 5 2 . Recyclers Shooed 12 | 1 1 . 1 . 2 . . 2 5 . Parts Field Recycled 14 | . . . 14 . . . . . . . Retrieved Matter 237 | . . . 237 . . . . . . . Parts Self-Destructed 7 | . . 7 . . . . . . . . Prevented . | . . . . . . . . . . . Kills | -11 -10 -10 -8 -7 -7 -7 -7 -5 -4 -4 ------- Run | Yrd Mat Sub Mat Fac Sto Rec Scr Fac Fac Upp Combat Hostiles Destroyed 173 | . 9 2 21 2 41 14 . 49 35 . Melee 4 | . . . . . 2 . . 1 1 . Guns 72 | . 9 1 19 1 17 2 . 23 . . Cannons 30 | . . 1 2 1 4 . . 3 19 . AOE 65 | . . . . . 16 12 . 22 15 . Classes Destroyed 17 | 1 7 1 2 . 3 1 . 2 . . Worker 35 | . 3 . 3 . 17 1 . 8 3 . Builder 22 | . . . . . 2 1 . 17 2 . Tunneler 5 | . 1 . 2 1 . . . . 1 . Hauler 19 | . 2 . 3 1 5 1 . 5 2 . Recycler 18 | 1 . . 3 . 8 1 . 3 2 . Mechanic 2 | . . . . . . . . 1 1 . Operator 6 | . 2 . 1 . 1 . . . 2 . Watcher 11 | . 3 . 3 . 2 . . 3 . . Swarmer 30 | . 6 . 7 . 8 2 . 3 4 . Grunt 74 | . 3 . 9 1 22 4 . 24 11 . Brawler 5 | . . . . . . . . 3 2 . Duelist 9 | . . . 1 . 1 . . 4 3 . Protector 6 | . . . . . 1 4 . 1 . . Sentry 16 | . . . 4 1 8 2 . . 1 . Hunter 17 | . . . . . . 1 . 9 7 . Programmer 13 | . . . . . 1 . . 5 7 . Subdweller 2 | . . 2 . . . . . . . . Best Kill Streak 24 | 1 5 1 9 3 10 14 . 24 15 . Combat Bots Only 11 | . 4 1 5 2 6 11 . 10 10 . Max Kills in Single Turn 9 | 1 2 1 2 1 5 9 . 7 8 . Gunslinging 1 | . . . . . . . . 1 . . Exploded 7 | . . . . . 5 7 . 4 4 . Melee 1 | . . . . . 1 . . 1 1 . Uniques/NPCs Destroyed 1 | . . . . . . 1 . . . . 01-MTF (-7/Recycling) Combat | -11 -10 -10 -8 -7 -7 -7 -7 -5 -4 -4 -------- Run | Yrd Mat Sub Mat Fac Sto Rec Scr Fac Fac Upp Hostile Shots Fired 1469 | . 54 27 140 27 327 48 . 334 496 16 Missed 519 | . 19 9 46 12 133 14 . 90 187 9 Damage Taken 15595 | . 320 513 1231 119 1922 649 . 4861 5873 107 Core 2066 | . 17 101 168 . 246 79 . 294 1054 107 Absorbed by Shields 519 | . . . . . . . . . 519 . Ignored by Resistances 222 | . . . 20 . . . . 202 . . Regen/Repaired (Parts) 688 | . . . . . . . 540 148 . . Core Remaining (%) 68 | 100 . 52 69 . . . 53 70 . . Volleys Fired 459 | 4 45 32 88 5 101 15 . 107 62 . Largest 4 | 2 2 2 3 3 3 3 . 4 4 . Hottest 329 | 40 79 95 108 85 136 90 . 174 329 . Shots Fired 1162 | 8 90 62 262 15 232 23 . 291 179 . Gun 871 | 8 90 33 251 10 193 12 . 250 24 . Cannon 238 | . . 29 11 5 21 7 . 24 141 . Launcher 53 | . . . . . 18 4 . 17 14 . Special . | . . . . . . . . . . . Kinetic 994 | 8 83 57 262 15 193 12 . 250 114 . Thermal 115 | . 7 5 . . 21 7 . 24 51 . Explosive 51 | . . . . . 18 4 . 17 12 . Electromagnetic 2 | . . . . . . . . . 2 . Robot Hit Streak 39 | 7 10 6 15 17 27 28 . 39 17 . Robot Miss Streak 8 | . 5 2 8 . 2 2 . 3 5 . Penetration Max . | . . . . . . . . . . . Secondary Targets 11 | . 1 . 2 . 2 . . 6 . . Max Gunslinging Chain 1 | . 1 . 1 . 1 . . 1 . . Shots Hit Robots 790 | 7 51 22 154 11 163 16 . 244 122 . Core Hits 651 | 3 26 5 59 8 153 67 . 251 79 . Critical Kills 4 | . 1 . . . 1 . . . 2 . Critical Parts Destroyed 10 | . . . 1 . 2 . . 3 4 . Critical Strikes 23 | . 1 . 1 . 3 . . 3 15 . Meltdown 1 | . . . . . 1 . . . . . Destroy 9 | . 1 . 1 . . . . 2 5 . Blast 8 | . . . . . . . . . 8 . Smash 4 | . . . . . 2 . . 1 1 . Sever 1 | . . . . . . . . . 1 . Melee Attacks 36 | . . . . . 12 . . 9 15 . Impact 31 | . . . . . 12 . . 9 10 . Slashing 5 | . . . . . . . . . 5 . Piercing . | . . . . . . . . . . . Sneak Attacks 13 | . . . . . 2 . . 6 5 . Combat Hostiles . | . . . . . . . . . . . Follow-up Attacks . | . . . . . . . . . . . Damage Inflicted 30405 | 74 661 384 2633 209 5954 2121 . 10159 8210 . Guns 10751 | 74 661 166 2365 117 2647 173 . 4180 368 . Cannons 5236 | . . 218 158 65 375 119 . 900 3401 . Explosions 12255 | . . . 55 . 2441 1829 . 4308 3622 . Melee 1941 | . . . . . 388 . . 742 811 . Ramming 222 | . . . 55 27 103 . . 29 8 . Kinetic 13416 | 74 592 384 2523 182 2647 173 . 4180 2661 . Thermal 3290 | . 69 . . . 375 119 . 900 1827 . Explosive 11233 | . . . . . 2441 1829 . 4308 2655 . Electromagnetic 303 | . . . 55 . . . . . 248 . Impact 1752 | . . . . . 388 . . 742 622 . Slashing 189 | . . . . . . . . . 189 . Piercing . | . . . . . . . . . . . Highest Corruption 8 | . . . 1 . 1 8 . 7 8 3 Average Corruption 3 | . . . 1 . 1 6 . 2 4 3 Corruption Purged 5 | . . . . . . . . . 5 . Corruption Blocked . | . . . . . . . . . . . Effects 63 | . . . . . 5 14 . 18 26 . Message Errors 17 | . . . . . 1 5 . 5 6 . Matter Fused 15 | . . . . . . 5 . 4 6 . Heat Flow Errors 10 | . . . . . 2 1 . 2 5 . Energy Discharges 9 | . . . . . 1 3 . . 5 . Parts Rejected 3 | . . . . . . . . 2 1 . Data Loss (minor) 6 | . . . . . 1 . . 4 1 . Misfires 2 | . . . . . . . . 1 1 . Alerts 1 | . . . . . . . . . 1 . Overload Shots 19 | . . . . . 1 7 . 11 . . Overflow Damage 1185 | . . . . . 274 13 . 341 557 . Projectiles 208 | . . . . . . . . 33 175 . Explosions 268 | . . . . . 31 13 . . 224 . Melee 709 | . . . . . 243 . . 308 158 . Knockbacks 35 | . . 5 3 . 5 . . 4 18 . Impact 14 | . . . . . 5 . . 4 5 . Kinetic 20 | . . 5 3 . . . . . 12 . Secondary 1 | . . . . . . . . . 1 . Self-Inflicted Damage 618 | . . . . . 163 43 . 87 325 . Shots 19 | . . . . . 7 2 . 5 5 . Rammed 23 | . . . 6 1 9 . . 5 2 . Targets Rammed 32 | . . . 9 2 14 . . 5 2 . Kicked . | . . . . . . . . . . . Crushed 9 | . . . 3 1 5 . . . . . Highest Temperature 383 | . . . 128 60 228 266 . 298 383 . Average Temperature 66 | . . . 36 23 49 116 . 74 136 . Received Heat Transfer 3254 | . 72 . 549 42 507 18 . 1049 1017 . Effects 2 | . . . . . . . . . 2 . Shutdowns 1 | . . . . . . . . . 1 . Short Circuit 1 | . . . . . . . . . 1 . Siege Activations . | . . . . . . . . . . . Robots Corrupted 9 | . . . . . 5 . . 3 1 . Combat Hostiles 1 | . . . . . 1 . . . . . Parts Fried 10 | . . . . . 3 . . 3 4 . Impact Corruptions 24 | . . . . . 10 . . 10 4 . Robots Melted 1 | . . . . . 1 . . . . . Combat Hostiles 1 | . . . . . 1 . . . . . Parts Melted 4 | . . . . . 1 . . 1 2 . Heat Transferred 3704 | . 148 . . . 555 250 . 944 1807 . Parts Sabotaged . | . . . . . . . . . . . Parts Stolen . | . . . . . . . . . . . Parts Stripped . | . . . . . . . . . . . Power Chain Reactions . | . . . . . . . . . . . Alert | -11 -10 -10 -8 -7 -7 -7 -7 -5 -4 -4 ------- Run | Yrd Mat Sub Mat Fac Sto Rec Scr Fac Fac Upp Peak Influence 1953 | 5 236 . 366 165 1314 486 . 1318 1953 . Initial 645 | . 3 . . 165 41 486 . . 645 . Average 507 | 2 108 . 142 127 713 286 . 487 931 . Maximum Alert Level 5 | . 1 . 1 . 4 2 . 4 5 . Low Security (%) 34 | 100 95 . 75 100 10 24 . 17 . . Level 1 17 | . 4 . 24 . 19 60 . 32 . . Level 2 22 | . . . . . 25 14 . 22 52 . Level 3 8 | . . . . . 13 . . 15 14 . Level 4 13 | . . . . . 29 . . 11 23 . Level 5 2 | . . . . . . . . . 9 . High Security . | . . . . . . . . . . . Max Security . | . . . . . . . . . . . Squads Dispatched 50 | . 2 . 2 . 11 . . 19 16 . Investigation 7 | . . . 1 . 1 . . 3 2 . Extermination 8 | . . . . . 1 . . 2 5 . Reinforcement 17 | . 2 . 1 . 5 . . 6 3 . Assault 11 | . . . . . 1 . . 4 6 . Garrison 7 | . . . . . 3 . . 4 . . Intercept . | . . . . . . . . . . . Searches Triggered . | . . . . . . . . . . . Construction Impeded 4 | . . . . . 2 . . 2 . . Haulers Reinforced 5 | . . . . . 2 . . 2 1 . Active Scanning Responses . | . . . . . . . . . . . Cargo Convoy Interrupts 1 | . . . . . . . . . 1 . Stealth | -11 -10 -10 -8 -7 -7 -7 -7 -5 -4 -4 --------- Run | Yrd Mat Sub Mat Fac Sto Rec Scr Fac Fac Upp Distress Signals 7 | . 1 . 2 . 3 . . 1 . . Communications Jammed . | . . . . . . . . . . . Distress Signals . | . . . . . . . . . . . Times Spotted 274 | . 16 7 36 2 52 9 . 63 85 4 Peak Tracking Total 15 | . 5 2 7 2 5 6 . 7 15 4 Tactical Retreats 21 | . 2 2 4 . . . . 1 12 . Traps | -11 -10 -10 -8 -7 -7 -7 -7 -5 -4 -4 ------- Run | Yrd Mat Sub Mat Fac Sto Rec Scr Fac Fac Upp Traps Triggered 3 | . . . 2 . . . . 1 . . Indirectly . | . . . . . . . . . . . Trap Hack Attempts . | . . . . . . . . . . . Triggered . | . . . . . . . . . . . Disarmed . | . . . . . . . . . . . Reprogrammed . | . . . . . . . . . . . Reused 1 | . . 1 . . . . . . . . Traps Extracted . | . . . . . . . . . . . Installed 1 | . . 1 . . . . . . . . Triggered 2 | . . . . . . . . . 2 . Most Traps Carried 2 | . . 2 2 2 2 . . . . . Machines | -11 -10 -10 -8 -7 -7 -7 -7 -5 -4 -4 ---------- Run | Yrd Mat Sub Mat Fac Sto Rec Scr Fac Fac Upp Machines Disabled 34 | . . . 5 1 10 1 . 6 11 . Max in Single Turn 7 | . . . 1 1 2 1 . 2 7 . Garrison Access 3 | . . . . . 1 . . 2 . . Machines Repaired . | . . . . . . . . . . . Machines Dismantled . | . . . . . . . . . . . Machines Sabotaged . | . . . . . . . . . . . Overloaded Fab Kills . | . . . . . . . . . . . Hacking | -11 -10 -10 -8 -7 -7 -7 -7 -5 -4 -4 --------- Run | Yrd Mat Sub Mat Fac Sto Rec Scr Fac Fac Upp Machines Accessed 41 | . 2 1 5 2 7 4 5 5 10 . Terminals 21 | . 2 . 5 1 5 2 . 2 4 . Fabricators 2 | . . . . 1 . . . . 1 . Repair Stations 2 | . . . . . . . . 1 1 . Recycling Units 7 | . . . . . 1 2 . 1 3 . Scanalyzers . | . . . . . . . . . . . Garrison Access 3 | . . . . . 1 . . 1 1 . Total Hacks 111 | . 7 4 17 5 14 10 23 8 23 . Successful 74 | . 4 4 11 2 9 7 23 4 10 . Failed 37 | . 3 . 6 3 5 3 . 4 13 . Catastrophic 8 | . . . 1 2 . 2 . 1 2 . Database Lockouts . | . . . . . . . . . . . Manual 39 | . 3 . 8 1 4 1 . 6 16 . Terminals 60 | . 7 . 17 4 10 7 . 3 12 . Fabricators 4 | . . . . 1 . . . . 3 . Repair Stations 5 | . . . . . . . . 3 2 . Recycling Units 12 | . . . . . 3 3 . 1 5 . Scanalyzers . | . . . . . . . . . . . Garrison Access 3 | . . . . . 1 . . 1 1 . Terminal Hacks 55 | . 4 4 8 2 5 5 23 1 3 . Record 21 | . . 4 . . . . 17 . . . Robot Analysis 6 | . . . . . . . 6 . . . Prototype ID Bank 3 | . 1 . 2 . . . . . . . Open Door 3 | . . . . . 3 . . . . . Open DSF 1 | . . . . . . . . 1 . . Level Access Points 1 | . . . 1 . . . . . . . Branch Access Points 4 | . 1 . 1 . 1 . . . 1 . Alert Level 6 | . . . 2 . 1 2 . . 1 . Unreport Threat 6 | . . . 1 2 . 3 . . . . Locate Traps 2 | . 1 . 1 . . . . . . . Registered Components 2 | . 1 . . . . . . . 1 . Fabricator Hacks 1 | . . . . . . . . . 1 . Network Status 1 | . . . . . . . . . 1 . Repair Station Hacks . | . . . . . . . . . . . Recycling Unit Hacks 3 | . . . . . 1 1 . . 1 . Report Inventory 1 | . . . . . . . . . 1 . Retrieve Components 2 | . . . . . 1 1 . . . . Scanalyzer . | . . . . . . . . . . . Garrison Access Hacks 1 | . . . . . . . . 1 . . Seal Access 1 | . . . . . . . . 1 . . Unauthorized Hacks 14 | . . . 3 . 3 1 . 2 5 . Terminals 7 | . . . 3 . 2 . . . 2 . Botnet 5 | . . . 2 . 1 . . . 2 . Operators 2 | . . . 1 . 1 . . . . . Fabricators 1 | . . . . . . . . . 1 . Report 1 | . . . . . . . . . 1 . Repair Stations 4 | . . . . . . . . 2 2 . Patch 1 | . . . . . . . . 1 . . Recycling Units 1 | . . . . . . 1 . . . . Tunnel 1 | . . . . . . 1 . . . . Fedlink 2 | . . . . . . . . . 2 . Scrapoids 1 | . . . . . . . . 1 . . Scanalyzers . | . . . . . . . . . . . Garrison Access 1 | . . . . . 1 . . . . . Reprogram 1 | . . . . . 1 . . . . . Data Cores Recovered 2 | . . . . . 1 . . . 1 . Used . | . . . . . . . . . . . Hacking Detections 25 | . 2 . 3 2 5 3 . 2 8 . Full Trace Events 1 | . . . . . . 1 . . . . Feedback Events . | . . . . . . . . . . . Feedback Blocked . | . . . . . . . . . . . Robot Schematics Acquired . | . . . . . . . . . . . Robots Built . | . . . . . . . . . . . Authchips . | . . . . . . . . . . . Time . | . . . . . . . . . . . Total Robot Build Rating . | . . . . . . . . . . . Part Schematics Acquired . | . . . . . . . . . . . Parts Built . | . . . . . . . . . . . Authchips . | . . . . . . . . . . . Time . | . . . . . . . . . . . Total Part Build Rating . | . . . . . . . . . . . Parts Repaired . | . . . . . . . . . . . Time . | . . . . . . . . . . . Parts Recycled . | . . . . . . . . . . . Recycled Matter . | . . . . . . . . . . . Retrieved Matter . | . . . . . . . . . . . Retrieved Components 9 | . . . . . 8 1 . . . . Parts Scanalyzed . | . . . . . . . . . . . Part Schematics Acquired . | . . . . . . . . . . . Parts Damaged . | . . . . . . . . . . . Bothacking | -11 -10 -10 -8 -7 -7 -7 -7 -5 -4 -4 ------------ Run | Yrd Mat Sub Mat Fac Sto Rec Scr Fac Fac Upp Used RIF Installer . | . . . . . . . . . . . Robots Hacked . | . . . . . . . . . . . Non-combat . | . . . . . . . . . . . Combat . | . . . . . . . . . . . Robot Hacks Applied . | . . . . . . . . . . . Relay Couplers Released 4 | . . . . . 1 . . 3 . . Machine Destruction 4 | . . . . . 1 . . 3 . . Fabnet Peak Effective % . | . . . . . . . . . . . Robots Rewired 2 | . . . . . . 2 . . . . Allies Hacked 1 | . . . . . . . . . 1 . Hacks Repelled . | . . . . . . . . . . . Allies | -11 -10 -10 -8 -7 -7 -7 -7 -5 -4 -4 -------- Run | Yrd Mat Sub Mat Fac Sto Rec Scr Fac Fac Upp Total Allies 9 | . . . . . 2 2 . 5 . . Largest Group 5 | . . . . . 2 2 2 5 5 . Highest-Rated Group 238 | . . . . . 32 62 62 238 235 . Highest-Rated Ally 50 | . . . . . 16 32 32 50 47 . Total Orders 1 | . . . . . . . 1 . . . RETURN 1 | . . . . . . . 1 . . . Ally Attacks 93 | . . . . . 15 . . 37 41 . Total Damage 1903 | . . . . . 168 . . 851 884 . Kills 8 | . . . . . 1 . . 3 4 . Allies Corrupted . | . . . . . . . . . . . Allies Melted . | . . . . . . . . . . . Intel | -11 -10 -10 -8 -7 -7 -7 -7 -5 -4 -4 ------- Run | Yrd Mat Sub Mat Fac Sto Rec Scr Fac Fac Upp Robot Analysis Total 6 | . . . . . . . 6 . . . Derelict Logs Recovered 1 | . . 1 . . . . . . . . Drone Launches 1 | . . . . . . . 1 . . . Drone Recoveries 1 | . . . . . . . 1 . . . Exploration | -11 -10 -10 -8 -7 -7 -7 -7 -5 -4 -4 ------------- Run | Yrd Mat Sub Mat Fac Sto Rec Scr Fac Fac Upp Turns Passed 12338 | 121 974 1044 1568 277 1810 508 2318 1568 2128 22 Spaces Moved 6346 | 66 447 655 757 158 783 229 1449 596 1163 43 Core 133 | 1 . . . . . . . . 89 43 Treads 5398 | 43 447 436 657 158 783 229 1449 596 600 . Legs . | . . . . . . . . . . . Wheels 341 | 22 . 219 100 . . . . . . . Hover . | . . . . . . . . . . . Flight 474 | . . . . . . . . . 474 . Fastest Speed 40 | 50 160 95 95 148 148 155 155 155 40 50 Average Speed 152 | 134 160 139 148 148 163 186 155 172 139 50 Slowest Speed 247 | 160 160 240 232 148 240 232 155 243 247 50 Overloaded Moves . | . . . . . . . . . . . Propulsion Burnouts . | . . . . . . . . . . . Robots Hopped 7 | . . . . . . . . . 7 . Cave-ins Triggered . | . . . . . . . . . . . Exploration Rate (%) 40 | 3 62 47 58 5 87 45 82 16 30 15 Regions Visited 10 Branch Regions 5 Pre-discovered Areas 1 | . . . . . . 1 . . . . Known Exits Taken 7 | . . . 1 1 1 1 1 1 1 . Unknown Exits Taken 3 | 1 1 1 . . . . . . . . Scrap Searched 3 | . . . . . . . 3 . . . Spaces Dug 123 | . . . . . 75 22 . 6 20 . Terrain Destroyed 857 | . . . 2 . 284 86 . 235 250 . Melee 3 | . . . . . 3 . . . . . Projectile 48 | . . . 2 . 5 2 . 2 37 . AOE 806 | . . . . . 276 84 . 233 213 . Terrain Rammed . | . . . . . . . . . . . Walls Destroyed . | . . . . . . . . . . . Machines Disabled . | . . . . . . . . . . . Actions | -11 -10 -10 -8 -7 -7 -7 -7 -5 -4 -4 --------- Run | Yrd Mat Sub Mat Fac Sto Rec Scr Fac Fac Upp Total 7910 | 87 623 734 991 189 1081 285 1519 863 1495 43 Wait 642 | 10 91 15 86 15 126 7 41 83 168 . Move 6324 | 65 446 654 756 157 782 228 1448 595 1150 43 Hop 6 | . . . . . . . . . 6 . Pick Up 107 | . 21 11 13 3 11 . 6 13 29 . Fast Attach 40 | 6 1 1 6 1 2 1 3 5 14 . Attach 56 | . . 1 5 3 5 1 4 23 14 . Detach 4 | . . . . . . 3 . . 1 . Swap 110 | 2 7 7 16 1 20 6 9 20 22 . Drop 73 | . 12 12 12 2 8 3 8 3 13 . Fire 459 | 4 45 32 88 5 101 15 . 107 62 . Melee 36 | . . . . . 12 . . 9 15 . Ram . | . . . . . . . . . . . Kick . | . . . . . . . . . . . Crush 31 | . . . 9 2 14 . . 5 1 . Escape Stasis . | . . . . . . . . . . . Rewire 21 | . . . . . . 21 . . . . Trap 1 | . . 1 . . . . . . . . Miscellaneous . | . . . . . . . . . . . Route ------- -11/Scrapyard -10/Materials (discovered 4 exits: [*Mat x2] / *Min / *Sub) -10/Subcaves -8/Materials (discovered 3 exits: *Fac x3) -7/Factory -7/Storage (discovered 2 exits: [*Fac] / *Rec) -7/Recycling -7/Scraptown -5/Factory -4/Factory (discovered 4 exits: *Upp x2 / Ext x2) -4/Upper Caves History --------- Turn | Location | Event 7 | -11/Scrapyard | Discovered new exit (range 16) 122 | -11/Scrapyard | Entered Materials 135 | -10/Materials | Identified exit to Mines 313 | -10/Materials | Build established: Mutant 614 | -10/Materials | Discovered new exit (range 13) 657 | -10/Materials | Discovered new exit (range 12) 1085 | -10/Materials | Discovered new exit (range 4) 1096 | -10/Materials | Entered Subcaves 1140 | -10/Subcaves | Shifting Twisted Machinery released Battle Cannon 1145 | -10/Subcaves | Shifting Twisted Machinery released Battle Rifle 1433 | -10/Subcaves | Shifting Twisted Machinery released Flamer 1435 | -10/Subcaves | Shifting Twisted Machinery released Shrapnel Trap 1772 | -10/Subcaves | Visited Clippyterm 1777 | -10/Subcaves | Learned Factory fabricator intel 2128 | -10/Subcaves | Discovered new exit (range 12) 2140 | -10/Subcaves | Entered Materials 2140 | -8/Materials | Evolved 4 slots: Propulsion x1, Utility x2, Weapon x1 2259 | -8/Materials | Lost 7 parts (2n1u4w) 2554 | -8/Materials | Build established: Scavenger-Skirmisher 2598 | -8/Materials | Discovered new exit (range 16) 2697 | -8/Materials | Identified exit to Factory 3187 | -8/Materials | Build established: Skirmisher 3577 | -8/Materials | Build established: Tank 3708 | -8/Materials | Entered Factory 3708 | -7/Factory | Evolved 2 slots: Propulsion x1, Utility x1 3709 | -7/Factory | Identified exit to Storage 3710 | -7/Factory | Loaded intel: 5 fabricator locations 3939 | -7/Factory | Build established: Skirmisher 3985 | -7/Factory | Entered Storage 4087 | -7/Storage | Identified exit to Recycling 4352 | -7/Storage | Build established: Scavenger-Skirmisher 4421 | -7/Storage | Found Prototype Launcher 4421 | -7/Storage | Identified Rocket Array 4425 | -7/Storage | Found Rocket Array 4428 | -7/Storage | Found Rocket Array 4866 | -7/Storage | Garrison activated, responded to threat 5042 | -7/Storage | Garrison activated, responded to threat 5234 | -7/Storage | Garrison activated, responded to threat 5356 | -7/Storage | Discovered new exit (range 15) 5420 | -7/Storage | Found Rocket Array 5444 | -7/Storage | Met 01-MTF 5608 | -7/Storage | Build established: Scavenger-Mutant 5795 | -7/Storage | Entered Recycling 5795 | -7/Recycling | Accompanied by 1 ally (01-MTF) 5909 | -7/Recycling | Destroyed 11 combat bots 5927 | -7/Recycling | Lost 3 parts (2n1u) 5927 | -7/Recycling | Destroyed 01-MTF 6212 | -7/Recycling | Build established: Gunner 6254 | -7/Recycling | Scanned before Scraplab entrance 6280 | -7/Recycling | Entered Scraplab 6300 | -7/Recycling | Discovered new exit (range 2) 6300 | -7/Recycling | Identified exit to Scraptown 6303 | -7/Recycling | Entered Scraptown 6303 | -7/Scraptown | Accompanied by 2 allies 6303 | -7/Scraptown | System corruption cleaned by C-Scrubber 6552 | -7/Scraptown | Visited UFD Registry 6552 | -7/Scraptown | Registered with UFD as "Metalwalker" 6598 | -7/Scraptown | Visited Cyclists 6615 | -7/Scraptown | Entered Cyclist Reading Room 6668 | -7/Scraptown | Visited TADAMA 7330 | -7/Scraptown | Visited Observation Area 7440 | -7/Scraptown | Visited Derelict Rescue Squad 7455 | -7/Scraptown | Found DRS Beacon 7615 | -7/Scraptown | Visited LU-1G1's Boring Crew 7646 | -7/Scraptown | Visited Infowarlord's Domain 7657 | -7/Scraptown | Found Exp. Terrain Scanner 7703 | -7/Scraptown | Visited Analyses Database 7736 | -7/Scraptown | Visited Scrap Suit Storage 7773 | -7/Scraptown | Visited Cartography Club 7830 | -7/Scraptown | Found Surveybot 17 Chip 8007 | -7/Scraptown | Discovered new exit (range 5) 8206 | -7/Scraptown | Visited Curators Association 8240 | -7/Scraptown | Visited Scrapoid Pod Storage 8249 | -7/Scraptown | Found Scrapoid Pod 8323 | -7/Scraptown | Visited Shadow of the Wyrm 8335 | -7/Scraptown | Visited Symbiants 8349 | -7/Scraptown | Visited CR-KLE's Repair Center 8364 | -7/Scraptown | CR-KLE repaired 6 parts 8402 | -7/Scraptown | Visited Assassins FH 8609 | -7/Scraptown | Identified exit to Factory 8621 | -7/Scraptown | Entered Factory 8621 | -5/Factory | Accompanied by 2 allies 8621 | -5/Factory | Evolved 4 slots: Propulsion x1, Utility x2, Weapon x1 8748 | -5/Factory | Identified exit to DSF 8799 | -5/Factory | Garrison activated, responded to threat 8945 | -5/Factory | Build established: Tank 9682 | -5/Factory | Found Prototype Launcher 9682 | -5/Factory | Identified Scatter Rocket Array 9785 | -5/Factory | Garrison activated, responded to threat 9809 | -5/Factory | Destroyed 10 combat bots 9826 | -5/Factory | Lost 5 parts (1n1u3w) 9850 | -5/Factory | First assault squad dispatched 9979 | -5/Factory | Lost 4 parts (2n2u) 10038 | -5/Factory | Lost 3 parts (2n1u) 10065 | -5/Factory | Scrapoid reinforcements arrived 10164 | -5/Factory | Discovered new exit (range 16) 10188 | -5/Factory | Identified exit to Factory 10189 | -5/Factory | Entered another Factory area 10189 | -4/Factory | Accompanied by 5 allies 10189 | -4/Factory | Evolved 2 slots: Power x1, Utility x1 10413 | -4/Factory | Build established: Scavenger-Skirmisher 10917 | -4/Factory | Discovered new exit (range 30) 10952 | -4/Factory | Cargo convoy interrupted 11059 | -4/Factory | Found Scrap Suit 11061 | -4/Factory | Lost 3 allies 11073 | -4/Factory | Found Scrap Suit 11225 | -4/Factory | P-70 Sage assimilated allied 05F04-D 11319 | -4/Factory | Build established: Gunner 11471 | -4/Factory | First assault squad dispatched 11538 | -4/Factory | Destroyed 10 combat bots 11635 | -4/Factory | Lost 8 parts (1p1n4u2w) 11679 | -4/Factory | Found Prototype Launcher 11680 | -4/Factory | Identified Com. Tesla Bomb Launcher 11878 | -4/Factory | Destroyed 8 combat bots 11884 | -4/Factory | Lost 8 parts (2n3u3w) 12038 | -4/Factory | Core integrity fell below 50% 12168 | -4/Factory | Build established: Mutant 12200 | -4/Factory | Spotted B-86 Titan 12276 | -4/Factory | Identified exit to Upper Caves 12276 | -4/Factory | Identified exit to Extension 12277 | -4/Factory | Spotted B-86 Titan 12301 | -4/Factory | Core integrity fell below 20% 12317 | -4/Factory | Entered Upper Caves 12339 | -4/Upper Caves | Destroyed by S-27 Virus with Autogun Last Messages --------------- 12292_ Slug penetrates Wall. 12293_ Penetrated by Slug. 12295_ Slug penetrates Wall. 12297_ Acquired Adv. Signal Interpreter. 12298_ Dual-blade Saw destroyed. 12298_ Penetrated by Slug. 12298_ Field Propulsion Array destroyed. 12299_ Adv. Melee Analysis Suite destroyed. 12300_ Penetrated by Slug. 12304_ System corrupted: Matter fused (-10). 12306_ ALERT: Suspicious intruders detected, dispatching Cutter reinforcements to area. 12314_ T-07 Excavator is excavating. 12315_ Penetrated by Slug. 12315_ Adv. Targeting Computer destroyed. 12315_ Critical hit (Blast). 12315_ Knocked back. 12317_ Slammed into H-71 Marshal. LOCATION=UPPER CAVES GOAL=ESCAPE Map ----- +----------------------------------------------------+ | ?????????????????????????????????????????????????? | | ?????????????????????????????????????????????????? | | ?????????????????????????????????????????????????? | | ?????????????????????????####????????????????????? | | ????????????????????????## #########????????????? | | ????????? ??????????#### ????????????? | | ???????? ??????????? ?????????????? | | ????????# ??????????? ??????????????? | | ????????? #????????? ???????????????? | | ?????????? ##???????? ????????????##### | | ??????????? ???????? #???????###### | | ???????????? ???????? #???????# | | ????????????? ???????# #????#### | | ?????#????????# ??????## #????# ## ## | | ????## ?????# s?????# #????# ???# ### | | ????# ##### s???## #?????# #????# #?? | | ???? s??## #???#### ###### ### | | ???# ?# #???# | | ???# ## ### ##??# | | ????# s #?# #??# ####+ # | | ????# ##?# #??# " "" "# | | ????# ##?# #??# # ""# | | ?? #### ### #??# # T # | | ???? ## ??????#### ### #?## # " #? | | ????????????????????## #?# ### # #? | | ?????????????????????# @##?# # | | ?????????????????????# #??# #" " | | ??????????????????? ##??###### # " "# | | ?????????????????# ####????????# # ] "# | | ?????????????????## ????????????# ## ###### | | ??????????????????# ????????????# ?????? | | ????????????????? ????????????# ?????? | | ???????????????? ????????????### ??????# | | ???????????????# ????????????????#### ?????? | | ???????????????# ???????????????????# ?????? | | ???????????????## ##???????????????????# ?????? | | ????????????????###?????????????????????# ????? | | ???????????????????????????????????????? ????? | | ???????????????????????????????????????? ????? | | ???????????????????????????????????????? ????? | | ????????????????????????????????????????####?#???? | | ?????????????????????????????????????????????????? | | ?????????????????????????????????????????????????? | | ?????????????????????????????????????????????????? | | ?????????????????????????????????????????????????? | | ?????????????????????????????????????????????????? | | ?????????????????????????????????????????????????? | | ?????????????????????????????????????????????????? | | ?????????????????????????????????????????????????? | | ?????????????????????????????????????????????????? | +----------------------------------------------------+ Best States ------------- Heat Dissipation 112 Energy Generation 33 Energy Capacity 410 Matter Stores 300 Matter Capacity 300 Sight Range 22 Robot Scan Range 15 Terrain Scan Range 30 Terrain Scan Density 1210 Additional Mass Support 12 Armor Coverage 450 Resistance: TH 10 Phase Shifting 5 Evasion (%) 70 Targeting Accuracy 8 Melee Accuracy 32 Recoil Reduction 5 Matter Filtering 30 Kinecelleration 30 Item Schematics ----------------- None Robot Schematics ------------------ None Fabricated ------------ Nothing Alien Tech Used ----------------- None Achievements -------------- Omniscient Cartographer Challenges ------------ None Game ------ Seed CouplerPhysicsFrame Manual? 0 Play Time 02:22:31 Cumulative 108.1 hours Start 2024.11.18 @ 01:15:02 End 2024.11.18 @ 23:56:16 Sessions 3 Manual Loads 0 Difficulty Rogue Special Mode None Game No. 57 Rogue 57 Adventurer 0 Explorer 0 Win Type - Total 2 Types 2/0/0/0/0/0/0/0/0 Lore% 42 Gallery% 59 Achievement% 52 Wizard Run 0 Options --------- Layout 1 ASCII 0 Keyboard 0 Movement Mouse Keybinds 0 Fullscreen 1 Font 24/Smallcaps Map View 50x35 Zoom Use 0% Tactical HUD 1 Map Filters NONE Filters NONE Steam 1 RUN: 0a7d2125-915f-45bb-a3a7-0fe7a165fcef